bitfinex-derivatives/quotes_BNBF0:USTF0_20250220
["timestamp","ask_amount","ask_price","bid_price","bid_amount"]
[1740011008752,1.09809,650.28,649.25,0.30804774]
[1740011009055,0.30751725,650.37,649.25,0.30804774]
[1740011009255,1.09863887,650.36,649.25,0.30804774]
[1740011009456,1.09863887,650.35,649.25,0.30804774]
[1740011009657,1.09863887,650.34,649.25,0.30804774]
[1740011009853,1.1326265,651.41,649.25,0.30804774]
[1740011010082,1.1326265,651.07,649.25,0.30804774]
[1740011010351,0.30719606,651.05,649.25,0.30804774]
[1740011010559,1.38116381,651.04,649.25,0.30804774]
[1740011010750,1.38116381,651.03,649.25,0.30804774]
[1740011010954,1.38116381,651.02,649.25,0.30804774]
[1740011011150,1.38116381,651.01,649.25,0.30804774]
[1740011011357,1.38116381,651.0,649.25,0.30804774]
[1740011011656,1.38116381,650.99,649.25,0.30804774]
[1740011011857,1.38116381,650.98,649.25,0.30804774]
[1740011012152,1.38119728,650.97,649.25,0.30804774]
[1740011012357,0.30724325,650.95,649.25,0.30804774]
[1740011012558,1.38119728,650.94,649.25,0.30804774]
[1740011012752,0.30725742,650.92,649.25,0.30804774]
[1740011012955,1.38119728,650.91,649.25,0.30804774]
[1740011013151,1.1326265,651.43,649.25,0.30804774]
[1740011013152,0.30727158,650.89,649.25,0.30804774]
[1740011013355,1.3813954,650.88,649.25,0.30804774]
[1740011013556,1.3813954,650.87,649.25,0.30804774]
[1740011013857,1.68868344,650.86,649.25,0.30804774]
[1740011014056,1.68868816,650.85,649.25,0.30804774]
[1740011014256,1.3813977,650.84,649.25,0.30804774]
[1740011014454,1.3813977,650.83,649.25,0.30804774]
[1740011014659,1.68870233,650.82,649.25,0.30804774]
[1740011014855,1.68870705,650.81,649.25,0.30804774]
[1740011015061,1.68871177,650.8,649.25,0.30804774]
[1740011015262,1.68871649,650.79,649.25,0.30804774]
[1740011015559,1.68872121,650.78,649.25,0.30804774]
[1740011015753,1.68872594,650.77,649.25,0.30804774]
[1740011015956,1.3813977,650.76,649.25,0.30804774]
[1740011016157,1.68873538,650.75,649.25,0.30804774]
[1740011016456,1.68874011,650.74,649.25,0.30804774]
[1740011016661,1.68874483,650.73,649.25,0.30804774]
[1740011016862,1.68874955,650.72,649.25,0.30804774]
[1740011017064,1.68875427,650.71,649.25,0.30804774]
[1740011017264,1.40615546,650.7,649.25,0.30804774]
[1740011017562,1.40611151,650.69,649.25,0.30804774]
[1740011017763,1.09874549,650.68,649.25,0.30804774]
[1740011017960,1.09874549,650.67,649.25,0.30804774]
[1740011018160,1.09874549,650.66,649.25,0.30804774]
[1740011018465,1.09854064,650.65,649.25,0.30804774]
[1740011018662,1.09854064,650.64,649.25,0.30804774]
[1740011018863,1.09854064,650.63,649.25,0.30804774]
[1740011019063,1.09854064,650.62,649.25,0.30804774]
[1740011019262,1.09854064,650.61,649.25,0.30804774]
[1740011019464,1.09854064,650.6,649.25,0.30804774]
[1740011019664,1.09854064,650.59,649.25,0.30804774]
[1740011019867,1.09854064,650.58,649.25,0.30804774]
[1740011020066,1.09854064,650.57,649.25,0.30804774]
[1740011020266,0.30736602,650.69,649.25,0.30804774]
[1740011020267,1.09854064,650.56,649.25,0.30804774]
[1740011020465,1.09854064,650.55,649.25,0.30804774]
[1740011020666,1.09854064,650.54,649.25,0.30804774]
[1740011020869,1.09854064,650.53,649.25,0.30804774]
[1740011021061,1.09854064,650.52,649.25,0.30804774]
[1740011021262,1.09854064,650.51,649.25,0.30804774]
[1740011021567,1.09855344,650.5,649.25,0.30804774]
[1740011021867,1.09855344,650.49,649.25,0.30804774]
[1740011022060,1.09855344,650.48,649.25,0.30804774]
[1740011022265,1.09855344,650.47,649.25,0.30804774]
[1740011022466,1.09855344,650.46,649.25,0.30804774]
[1740011022667,1.09855344,650.45,649.25,0.30804774]
[1740011022863,1.09855344,650.44,649.25,0.30804774]
[1740011023064,1.09855344,650.43,649.25,0.30804774]
[1740011023266,1.09855344,650.42,649.25,0.30804774]
[1740011023466,1.09853406,650.41,649.25,0.30804774]
[1740011023669,1.09853406,650.4,649.25,0.30804774]
[1740011023963,1.09853406,650.39,649.25,0.30804774]
[1740011024168,1.09853406,650.38,649.25,0.30804774]
[1740011024466,1.09853406,650.37,649.25,0.30804774]
[1740011024668,1.09853406,650.36,649.25,0.30804774]
[1740011024868,0.30736602,650.69,649.25,0.30804774]
[1740011025064,1.0984531,650.68,649.25,0.30804774]
[1740011025269,1.0984531,650.67,649.25,0.30804774]
[1740011025462,1.0984531,650.66,649.25,0.30804774]
[1740011025662,1.09826875,650.65,649.25,0.30804774]
[1740011025965,1.09826875,650.64,649.25,0.30804774]
[1740011026163,2.35302321,655.57,649.25,0.30804774]
[1740011026164,1.09826875,650.63,649.25,0.30804774]
[1740011026466,1.1326265,651.5,649.25,0.30804774]
[1740011026668,0.3069933,651.48,649.25,0.30804774]
[1740011026865,1.38037687,651.47,649.25,0.30804774]
[1740011027063,0.30704515,651.37,649.25,0.30804774]
[1740011027265,1.38040295,651.36,649.25,0.30804774]
[1740011027468,1.38040295,651.35,649.25,0.30804774]
[1740011027670,0.307064,651.33,649.25,0.30804774]
[1740011027968,1.38040295,651.32,649.25,0.30804774]
[1740011028169,0.30711587,651.22,649.25,0.30804774]
[1740011028468,1.38040295,651.21,649.25,0.30804774]
[1740011028672,1.38040295,651.2,649.25,0.30804774]
[1740011028863,1.68753297,651.19,649.25,0.30804774]
[1740011029062,0.30713945,651.17,649.25,0.30804774]
[1740011029261,1.38040295,651.16,649.25,0.30804774]
[1740011029465,1.38040295,651.15,649.25,0.30804774]
[1740011029665,1.38040295,651.14,649.25,0.30804774]
[1740011029866,0.30716304,651.12,649.25,0.30804774]
[1740011030067,1.38040295,651.11,649.25,0.30804774]
[1740011030263,1.1326265,651.31,649.25,0.30804774]
[1740011030264,0.30717719,651.09,649.25,0.30804774]
[1740011030470,1.0978842,651.08,649.25,0.30804774]
[1740011030666,1.38050044,651.07,649.25,0.30804774]
[1740011030866,1.38050044,651.06,649.25,0.30804774]
[1740011031066,0.30720078,651.04,649.25,0.30804774]
[1740011031266,1.38050044,651.03,649.25,0.30804774]
[1740011031470,0.30721494,651.01,649.25,0.30804774]
[1740011031671,1.38050044,651.0,649.25,0.30804774]
[1740011031967,0.3072291,650.98,649.25,0.30804774]
[1740011032171,1.38050044,650.97,649.25,0.30804774]
[1740011032371,0.30724325,650.95,649.25,0.30804774]
[1740011032571,1.38050044,650.94,649.25,0.30804774]
[1740011032871,0.30725742,650.92,649.25,0.30804774]
[1740011033070,1.38050044,650.91,649.25,0.30804774]
[1740011033270,0.30725742,650.92,649.25,0.30804774]
[1740011033271,0.30727158,650.89,649.25,0.30804774]
[1740011033470,1.38050044,650.88,649.25,0.30804774]
[1740011033666,1.38050044,650.87,649.25,0.30804774]
[1740011033870,1.38056599,650.86,649.25,0.30804774]
[1740011034067,1.38056599,650.85,649.25,0.30804774]
[1740011034371,0.3072999,650.83,649.25,0.30804774]
[1740011034572,1.38056599,650.82,649.25,0.30804774]
[1740011034872,0.30731407,650.8,649.25,0.30804774]
[1740011035068,1.38056599,650.79,649.25,0.30804774]
[1740011035265,0.30732824,650.77,649.25,0.30804774]
[1740011035470,1.0978842,650.76,649.25,0.30804774]
[1740011035773,0.30734241,650.74,649.25,0.30804774]
[1740011036066,1.38131003,650.73,649.25,0.30804774]
[1740011036267,1.38131003,650.72,649.25,0.30804774]
[1740011036471,0.30734241,650.74,649.25,0.30804774]
[1740011036472,1.38122346,650.71,649.25,0.30804774]
[1740011036772,0.30734241,650.74,649.25,0.30804774]
[1740011036773,1.38122346,650.7,649.25,0.30804774]
[1740011036964,1.68858948,650.69,649.25,0.30804774]
[1740011037168,1.40590994,650.68,649.25,0.30804774]
[1740011037367,1.68860467,650.67,649.25,0.30804774]
[1740011037564,1.68860939,650.66,649.25,0.30804774]
[1740011037764,1.68856968,650.65,649.25,0.30804774]
[1740011037965,1.6885744,650.64,649.25,0.30804774]
[1740011038172,0.30739909,650.62,649.25,0.30804774]
[1740011038472,1.38118476,650.61,649.25,0.30804774]
[1740011038674,1.6885933,650.6,649.25,0.30804774]
[1740011038971,1.68859803,650.59,649.25,0.30804774]
[1740011039172,1.68860275,650.58,649.25,0.30804774]
[1740011039368,1.1326265,651.01,649.25,0.30804774]
[1740011039369,1.68860748,650.57,649.25,0.30804774]
[1740011039671,1.38118476,650.56,649.25,0.30804774]
[1740011039871,1.38098319,650.55,649.25,0.30804774]
[1740011040071,1.68842008,650.54,649.25,0.30804774]
[1740011040271,1.68842481,650.53,649.25,0.30804774]
[1740011040472,1.68842954,650.52,649.25,0.30804774]
[1740011040768,1.40574425,650.51,649.25,0.30804774]
[1740011040971,1.09829318,650.5,649.25,0.30804774]
[1740011041271,1.09829318,650.49,649.25,0.30804774]
[1740011041572,1.09829318,650.48,649.25,0.30804774]
[1740011041872,1.09831602,650.47,649.25,0.30804774]
[1740011042071,1.09831602,650.46,649.25,0.30804774]
[1740011042272,1.09831602,650.45,649.25,0.30804774]
[1740011042573,1.09831602,650.44,649.25,0.30804774]
[1740011042771,1.09831602,650.43,649.25,0.30804774]
[1740011042973,1.09831602,650.42,649.25,0.30804774]
[1740011043171,1.09831602,650.41,649.25,0.30804774]
[1740011043473,1.09831602,650.4,649.25,0.30804774]
[1740011043673,1.09831602,650.39,649.25,0.30804774]
[1740011043871,1.09831602,650.38,649.25,0.30804774]
[1740011044072,1.09831602,650.37,649.25,0.30804774]
[1740011044374,1.09831602,650.36,649.25,0.30804774]
[1740011044574,1.38104389,650.35,649.25,0.30804774]
[1740011044875,0.30745107,650.51,649.25,0.30804774]
[1740011044876,1.38104389,650.34,649.25,0.30804774]
[1740011045077,1.38104389,650.33,649.25,0.30804774]
[1740011045274,1.38104389,650.32,649.25,0.30804774]
[1740011045573,1.09831602,650.31,649.25,0.30804774]
[1740011045776,1.09831602,650.3,649.25,0.30804774]
[1740011045975,1.09819879,650.29,649.25,0.30804774]
[1740011046175,1.09819879,650.28,649.25,0.30804774]
[1740011046372,1.09819879,650.27,649.25,0.30804774]
[1740011046675,1.09819879,650.26,649.25,0.30804774]
[1740011046870,1.09819879,650.25,649.25,0.30804774]
[1740011047071,1.09819879,650.24,649.25,0.30804774]
[1740011047275,1.09819879,650.23,649.25,0.30804774]
[1740011047468,1.09819879,650.22,649.25,0.30804774]
[1740011047668,1.09819879,650.21,649.25,0.30804774]
[1740011047970,1.09754775,650.2,649.25,0.30804774]
[1740011048178,1.0977347,650.19,649.25,0.30804774]
[1740011048374,0.30745107,650.51,649.25,0.30804774]
[1740011048571,1.09781446,650.5,649.25,0.30804774]
[1740011048772,1.09781446,650.49,649.25,0.30804774]
[1740011048974,1.09781446,650.48,649.25,0.30804774]
[1740011049174,1.09781446,650.47,649.25,0.30804774]
[1740011049374,1.09781446,650.46,649.25,0.30804774]
[1740011049575,1.09781446,650.45,649.25,0.30804774]
[1740011049775,1.09781446,650.44,649.25,0.30804774]
[1740011050075,1.09640034,650.43,649.25,0.30804774]
[1740011050276,0.30745107,650.51,649.25,0.30804774]
[1740011050476,1.09643888,650.5,649.25,0.30804774]
[1740011050677,1.09643888,650.49,649.25,0.30804774]
[1740011050876,1.09643888,650.48,649.25,0.30804774]
[1740011051077,1.09643888,650.47,649.25,0.30804774]
[1740011051376,1.09643888,650.46,649.25,0.30804774]
[1740011051576,1.09643888,650.45,649.25,0.30804774]
[1740011051776,1.09643888,650.44,649.25,0.30804774]
[1740011051977,1.09643888,650.43,649.25,0.30804774]
[1740011052179,1.09643888,650.42,649.25,0.30804774]
[1740011052371,0.30745107,650.51,649.25,0.30804774]
[1740011052372,1.09643888,650.41,649.25,0.30804774]
[1740011052571,0.30745107,650.51,649.25,0.30804774]
[1740011052572,1.09643888,650.4,649.25,0.30804774]
[1740011052775,1.09643888,650.39,649.25,0.30804774]
[1740011052972,1.09643888,650.38,649.25,0.30804774]
[1740011053173,1.09643888,650.37,649.25,0.30804774]
[1740011053375,1.09643888,650.36,649.25,0.30804774]
[1740011053679,1.09643888,650.35,649.25,0.30804774]
[1740011053870,1.09643888,650.34,649.25,0.30804774]
[1740011054075,1.09643888,650.33,649.25,0.30804774]
[1740011054275,1.09643888,650.32,649.25,0.30804774]
[1740011054474,1.09643888,650.31,649.25,0.30804774]
[1740011054671,1.09643888,650.3,649.25,0.30804774]
[1740011054876,1.09643888,650.29,649.25,0.30804774]
[1740011055176,1.09643888,650.28,649.25,0.30804774]
[1740011055377,1.09643888,650.27,649.25,0.30804774]
[1740011055571,1.09643888,650.26,649.25,0.30804774]
[1740011055772,1.09643888,650.25,649.25,0.30804774]
[1740011055970,1.09643888,650.24,649.25,0.30804774]
[1740011056277,1.09643888,650.23,649.25,0.30804774]
[1740011056477,1.09643888,650.22,649.25,0.30804774]
[1740011056778,1.09643888,650.21,649.25,0.30804774]
[1740011056978,1.09643888,650.2,649.25,0.30804774]
[1740011057177,1.09643888,650.19,649.25,0.30804774]
[1740011057374,1.09643888,650.18,649.25,0.30804774]
[1740011057579,0.30745107,650.51,649.25,0.30804774]
[1740011057775,1.09740007,650.5,649.25,0.30804774]
[1740011057974,1.09740007,650.49,649.25,0.30804774]
[1740011058278,1.09740007,650.48,649.25,0.30804774]
[1740011058478,1.09740007,650.47,649.25,0.30804774]
[1740011058674,0.30745107,650.51,649.25,0.30804774]
[1740011058675,1.09754318,650.46,649.25,0.30804774]
[1740011058879,1.09754318,650.45,649.25,0.30804774]
[1740011059072,1.09754318,650.44,649.25,0.30804774]
[1740011059272,1.09754318,650.43,649.25,0.30804774]
[1740011059476,1.09754318,650.42,649.25,0.30804774]
[1740011059773,1.09754318,650.41,649.25,0.30804774]
[1740011059978,1.09754318,650.4,649.25,0.30804774]
[1740011060173,1.09754318,650.39,649.25,0.30804774]
[1740011060376,1.09754318,650.38,649.25,0.30804774]
[1740011060577,1.09754318,650.37,649.25,0.30804774]
[1740011060777,1.09701826,650.36,649.25,0.30804774]
[1740011060974,1.09701826,650.35,649.25,0.30804774]
[1740011061178,1.09701826,650.34,649.25,0.30804774]
[1740011061383,1.09701826,650.33,649.25,0.30804774]
[1740011061578,1.09701826,650.32,649.25,0.30804774]
[1740011061780,1.09701826,650.31,649.25,0.30804774]
[1740011061979,1.09701826,650.3,649.25,0.30804774]
[1740011062179,1.09701826,650.29,649.25,0.30804774]
[1740011062382,1.09701826,650.28,649.25,0.30804774]
[1740011062681,1.09701826,650.27,649.25,0.30804774]
[1740011062884,1.09701826,650.26,649.25,0.30804774]
[1740011063082,1.09701826,650.25,649.25,0.30804774]
[1740011063286,1.09701826,650.24,649.25,0.30804774]
[1740011063484,1.09701826,650.23,649.25,0.30804774]
[1740011063684,1.09701826,650.22,649.25,0.30804774]
[1740011063984,1.09701826,650.21,649.25,0.30804774]
[1740011064178,1.09701826,650.2,649.25,0.30804774]
[1740011064379,1.09701826,650.19,649.25,0.30804774]
[1740011064582,1.09701826,650.18,649.25,0.30804774]
[1740011064877,1.09629882,650.17,649.25,0.30804774]
[1740011065083,1.09629882,650.16,649.25,0.30804774]
[1740011065283,1.09629882,650.15,649.25,0.30804774]
[1740011065483,1.09629882,650.14,649.25,0.30804774]
[1740011065786,1.09629882,650.13,649.25,0.30804774]
[1740011065985,1.09629882,650.12,649.25,0.30804774]
[1740011066285,1.09629882,650.11,649.25,0.30804774]
[1740011066479,1.09629882,650.1,649.25,0.30804774]
[1740011066684,1.09629882,650.09,649.25,0.30804774]
[1740011066885,1.09629882,650.08,649.25,0.30804774]
[1740011067085,1.09629882,650.07,649.25,0.30804774]
[1740011067285,1.09629882,650.06,649.25,0.30804774]
[1740011067484,1.09629882,650.05,649.25,0.30804774]
[1740011067783,0.30745107,650.51,649.25,0.30804774]
[1740011067784,1.09629882,650.04,649.25,0.30804774]
[1740011067981,1.09629882,650.03,649.25,0.30804774]
[1740011068185,1.09629882,650.02,649.25,0.30804774]
[1740011068484,1.09629882,650.01,649.25,0.30804774]
[1740011068685,1.09629882,650.0,649.25,0.30804774]
[1740011068884,1.09629882,649.99,649.25,0.30804774]
[1740011069089,1.09629882,649.98,649.25,0.30804774]
[1740011069283,0.30745107,650.51,649.25,0.30804774]
[1740011069588,1.37769767,650.5,649.25,0.30804774]
[1740011069788,1.68515819,650.49,649.25,0.30804774]
[1740011069985,1.68516292,650.48,649.25,0.30804774]
[1740011070292,1.1326265,650.75,649.25,0.30804774]
[1740011070293,1.68516765,650.47,649.25,0.30804774]
[1740011070487,1.09491707,650.46,649.25,0.30804774]
[1740011070681,1.37767047,650.45,649.25,0.30804774]
[1740011070885,1.37732913,650.44,649.25,0.30804774]
[1740011071089,1.37732913,650.43,649.25,0.30804774]
[1740011071283,1.68481901,650.42,649.25,0.30804774]
[1740011071481,1.68482374,650.41,649.25,0.30804774]
[1740011071683,1.68482847,650.4,649.25,0.30804774]
[1740011071883,1.1326265,650.77,649.25,0.30804774]
[1740011071884,1.40208353,650.39,649.25,0.30804774]
[1740011072190,1.09457573,650.38,649.25,0.30804774]
[1740011072390,1.09457573,650.37,649.25,0.30804774]
[1740011072591,1.09457573,650.36,649.25,0.30804774]
[1740011072792,1.09457573,650.35,649.25,0.30804774]
[1740011073089,1.09457573,650.34,649.25,0.30804774]
[1740011073293,1.09457573,650.33,649.25,0.30804774]
[1740011073487,1.09457573,650.32,649.25,0.30804774]
[1740011073688,1.09457573,650.31,649.25,0.30804774]
[1740011073987,1.09457573,650.3,649.25,0.30804774]
[1740011074194,1.09457573,650.29,649.25,0.30804774]
[1740011074394,1.09457573,650.28,649.25,0.30804774]
[1740011074595,1.09457573,650.27,649.25,0.30804774]
[1740011074895,1.09457573,650.26,649.25,0.30804774]
[1740011075095,1.09457573,650.25,649.25,0.30804774]
[1740011075394,1.09457573,650.24,649.25,0.30804774]
[1740011075594,0.3075078,650.39,649.25,0.30804774]
[1740011075595,1.09457573,650.23,649.25,0.30804774]
[1740011075795,1.09457573,650.22,649.25,0.30804774]
[1740011076095,1.09457573,650.21,649.25,0.30804774]
[1740011076288,1.09457573,650.2,649.25,0.30804774]
[1740011076488,1.09457573,650.19,649.25,0.30804774]
[1740011076693,1.0943864,650.18,649.25,0.30804774]
[1740011076894,0.3075078,650.39,649.25,0.30804774]
[1740011077195,1.09435905,650.38,649.25,0.30804774]
[1740011077395,1.09435905,650.37,649.25,0.30804774]
[1740011077595,1.09435905,650.36,649.25,0.30804774]
[1740011077796,1.09435905,650.35,649.25,0.30804774]
[1740011077992,1.09435905,650.34,649.25,0.30804774]
[1740011078194,1.09435905,650.33,649.25,0.30804774]
[1740011078395,1.09435905,650.32,649.25,0.30804774]
[1740011078595,1.09435905,650.31,649.25,0.30804774]
[1740011078796,1.09435905,650.3,649.25,0.30804774]
[1740011078992,1.09435905,650.29,649.25,0.30804774]
[1740011079197,1.09435905,650.28,649.25,0.30804774]
[1740011079397,1.09435905,650.27,649.25,0.30804774]
[1740011079596,0.3075078,650.39,649.25,0.30804774]
[1740011079597,1.09435905,650.26,649.25,0.30804774]
[1740011079895,1.09435905,650.25,649.25,0.30804774]
[1740011080097,1.09435905,650.24,649.25,0.30804774]
[1740011080298,1.09435905,650.23,649.25,0.30804774]
[1740011080592,1.09435905,650.22,649.25,0.30804774]
[1740011080800,1.09435905,650.21,649.25,0.30804774]
[1740011080995,1.09435905,650.2,649.25,0.30804774]
[1740011081193,1.09435905,650.19,649.25,0.30804774]
[1740011081495,1.09435905,650.18,649.25,0.30804774]
[1740011081700,1.09435905,650.17,649.25,0.30804774]
[1740011081892,1.09435905,650.16,649.25,0.30804774]
[1740011082092,1.09435905,650.15,649.25,0.30804774]
[1740011082296,1.09435905,650.14,649.25,0.30804774]
[1740011082591,1.09435905,650.13,649.25,0.30804774]
[1740011082791,1.09435905,650.12,649.25,0.30804774]
[1740011082991,1.09435905,650.11,649.25,0.30804774]
[1740011083192,1.09435905,650.1,649.25,0.30804774]
[1740011083391,1.09435905,650.09,649.25,0.30804774]
[1740011083593,1.09435905,650.08,649.25,0.30804774]
[1740011083792,1.09435905,650.07,649.25,0.30804774]
[1740011083994,1.09435905,650.06,649.25,0.30804774]
[1740011084194,0.3075078,650.39,649.25,0.30804774]
[1740011084397,1.09414944,650.38,649.25,0.30804774]
[1740011084696,1.09414944,650.37,649.25,0.30804774]
[1740011084895,0.3075078,650.39,649.25,0.30804774]
[1740011084896,1.09414944,650.36,649.25,0.30804774]
[1740011085097,1.09414944,650.35,649.25,0.30804774]
[1740011085297,1.09414944,650.34,649.25,0.30804774]
[1740011085499,1.09414944,650.33,649.25,0.30804774]
[1740011085699,1.09414944,650.32,649.25,0.30804774]
[1740011085900,1.09414944,650.31,649.25,0.30804774]
[1740011086100,1.09414944,650.3,649.25,0.30804774]
[1740011086401,0.3075078,650.39,649.25,0.30804774]
[1740011086402,1.09414944,650.29,649.25,0.30804774]
[1740011086596,1.09414944,650.28,649.25,0.30804774]
[1740011086802,1.09414944,650.27,649.25,0.30804774]
[1740011086998,1.09414944,650.26,649.25,0.30804774]
[1740011087202,1.09414944,650.25,649.25,0.30804774]
[1740011087395,1.09414944,650.24,649.25,0.30804774]
[1740011087599,1.09414944,650.23,649.25,0.30804774]
[1740011087802,1.09414944,650.22,649.25,0.30804774]
[1740011087998,1.09414944,650.21,649.25,0.30804774]
[1740011088196,1.09414944,650.2,649.25,0.30804774]
[1740011088498,1.09414944,650.19,649.25,0.30804774]
[1740011088696,0.3075078,650.39,649.25,0.30804774]
[1740011088697,1.09414944,650.18,649.25,0.30804774]
[1740011088899,1.09414944,650.17,649.25,0.30804774]
[1740011089099,1.09414944,650.16,649.25,0.30804774]
[1740011089301,1.09414944,650.15,649.25,0.30804774]
[1740011089502,1.09414944,650.14,649.25,0.30804774]
[1740011089703,1.09414944,650.13,649.25,0.30804774]
[1740011090002,1.09414944,650.12,649.25,0.30804774]
[1740011090202,1.09414944,650.11,649.25,0.30804774]
[1740011090404,1.09414944,650.1,649.25,0.30804774]
[1740011090598,1.09414944,650.09,649.25,0.30804774]
[1740011090802,1.09414944,650.08,649.25,0.30804774]
[1740011091002,1.09414944,650.07,649.25,0.30804774]
[1740011091200,1.09414944,650.06,649.25,0.30804774]
[1740011091399,1.09414944,650.05,649.25,0.30804774]
[1740011091599,1.09414944,650.04,649.25,0.30804774]
[1740011091899,1.09414944,650.03,649.25,0.30804774]
[1740011092205,1.09414944,650.02,649.25,0.30804774]
[1740011092404,0.3075078,650.39,649.25,0.30804774]
[1740011092606,1.09718451,650.38,649.25,0.30804774]
[1740011092801,1.09718451,650.37,649.25,0.30804774]
[1740011093000,1.09718451,650.36,649.25,0.30804774]
[1740011093202,1.09718451,650.35,649.25,0.30804774]
[1740011093401,1.09739869,650.34,649.25,0.30804774]
[1740011093603,1.09739869,650.33,649.25,0.30804774]
[1740011093803,1.09739869,650.32,649.25,0.30804774]
[1740011094098,1.09739869,650.31,649.25,0.30804774]
[1740011094405,1.09739869,650.3,649.25,0.30804774]
[1740011094601,1.09739869,650.29,649.25,0.30804774]
[1740011094803,1.09739869,650.28,649.25,0.30804774]
[1740011094997,1.09739869,650.27,649.25,0.30804774]
[1740011095205,1.09739869,650.26,649.25,0.30804774]
[1740011095405,1.09739869,650.25,649.25,0.30804774]
[1740011095600,1.09739869,650.24,649.25,0.30804774]
[1740011095804,1.1326265,650.79,649.25,0.30804774]
[1740011095805,1.09739869,650.23,649.25,0.30804774]
[1740011096000,1.09739869,650.22,649.25,0.30804774]
[1740011096200,1.1326265,650.79,649.25,0.30804774]
[1740011096404,1.1326265,650.66,649.25,0.30804774]
[1740011096605,1.09782083,650.65,649.25,0.30804774]
[1740011096805,1.09782083,650.64,649.25,0.30804774]
[1740011097101,1.09782083,650.63,649.25,0.30804774]
[1740011097306,1.09782083,650.62,649.25,0.30804774]
[1740011097506,1.09782083,650.61,649.25,0.30804774]
[1740011097706,1.09782083,650.6,649.25,0.30804774]
[1740011097907,1.09782083,650.59,649.25,0.30804774]
[1740011098103,1.09782083,650.58,649.25,0.30804774]
[1740011098305,1.09782083,650.57,649.25,0.30804774]
[1740011098509,1.09782083,650.56,649.25,0.30804774]
[1740011098704,1.09782083,650.55,649.25,0.30804774]
[1740011098903,1.09782083,650.54,649.25,0.30804774]
[1740011099103,1.09782083,650.53,649.25,0.30804774]
[1740011099303,1.09782083,650.52,649.25,0.30804774]
[1740011099507,1.09620259,650.51,649.25,0.30804774]
[1740011099708,1.09620259,650.5,649.25,0.30804774]
[1740011100008,1.09620259,650.49,649.25,0.30804774]
[1740011100209,1.09620259,650.48,649.25,0.30804774]
[1740011100408,1.09620259,650.47,649.25,0.30804774]
[1740011100608,1.09620259,650.46,649.25,0.30804774]
[1740011100805,1.09620259,650.45,649.25,0.30804774]
[1740011101011,1.09620259,650.44,649.25,0.30804774]
[1740011101210,1.1326265,651.09,649.25,0.30804774]
[1740011101211,1.09620259,650.43,649.25,0.30804774]
[1740011101406,1.09620259,650.42,649.25,0.30804774]
[1740011101604,1.09620259,650.41,649.25,0.30804774]
[1740011101808,1.09620259,650.4,649.25,0.30804774]
[1740011102006,1.09620259,650.39,649.25,0.30804774]
[1740011102209,1.09620259,650.38,649.25,0.30804774]
[1740011102412,1.09620259,650.37,649.25,0.30804774]
[1740011102612,1.09620259,650.36,649.25,0.30804774]
[1740011102812,1.09620259,650.35,649.25,0.30804774]
[1740011103013,1.09620259,650.34,649.25,0.30804774]
[1740011103207,1.09620259,650.33,649.25,0.30804774]
[1740011103411,1.09620259,650.32,649.25,0.30804774]
[1740011103607,1.09620259,650.31,649.25,0.30804774]
[1740011103810,1.09620259,650.3,649.25,0.30804774]
[1740011104011,1.09620259,650.29,649.25,0.30804774]
[1740011104209,1.09620259,650.28,649.25,0.30804774]
[1740011104412,1.09620259,650.27,649.25,0.30804774]
[1740011104615,1.09620259,650.26,649.25,0.30804774]
[1740011104916,1.09620259,650.25,649.25,0.30804774]
[1740011105111,1.09620259,650.24,649.25,0.30804774]
[1740011105312,1.09620259,650.23,649.25,0.30804774]
[1740011105513,1.09620259,650.22,649.25,0.30804774]
[1740011105714,1.09551407,650.21,649.25,0.30804774]
[1740011105914,1.09551407,650.2,649.25,0.30804774]
[1740011106116,1.09551407,650.19,649.25,0.30804774]
[1740011106312,1.09551407,650.18,649.25,0.30804774]
[1740011106517,1.09551407,650.17,649.25,0.30804774]
[1740011106717,1.09551407,650.16,649.25,0.30804774]
[1740011107019,1.1326265,651.32,649.25,0.30804774]
[1740011107213,1.37971738,651.31,649.25,0.30804774]
[1740011107518,0.30712059,651.21,649.25,0.30804774]
[1740011107718,1.37959746,651.2,649.25,0.30804774]
[1740011107912,0.30713474,651.18,649.25,0.30804774]
[1740011108115,1.37959746,651.17,649.25,0.30804774]
[1740011108313,1.37959746,651.16,649.25,0.30804774]
[1740011108512,1.37959746,651.15,649.25,0.30804774]
[1740011108719,1.68675106,651.14,649.25,0.30804774]
[1740011108919,0.30716304,651.12,649.25,0.30804774]
[1740011109115,1.37959746,651.11,649.25,0.30804774]
[1740011109314,0.30717719,651.09,649.25,0.30804774]
[1740011109515,1.37959746,651.08,649.25,0.30804774]
[1740011109715,0.30719134,651.06,649.25,0.30804774]
[1740011109914,1.37959746,651.05,649.25,0.30804774]
[1740011110120,0.3072055,651.03,649.25,0.30804774]
[1740011110419,1.37959746,651.02,649.25,0.30804774]
[1740011110619,0.30721966,651.0,649.25,0.30804774]
[1740011110820,0.28261476,650.99,649.25,0.30804774]
[1740011111318,0.30723382,650.97,649.25,0.30804774]
[1740011111619,1.37951366,650.96,649.25,0.30804774]
[1740011111821,0.30724797,650.94,649.25,0.30804774]
[1740011112015,1.37915185,650.93,649.25,0.30804774]
[1740011112218,0.30726214,650.91,649.25,0.30804774]
[1740011112519,1.37915185,650.9,649.25,0.30804774]
[1740011112714,0.3072763,650.88,649.25,0.30804774]